Cogmind - Beta 12 @@@ ROGUE MODE // 2023.04.26 @ 01:35:15 Player: wchar_t Result: Self-destructed Performance ------------- Evolutions (6) 3000 Regions Visited (20) 4000 Robots Destroyed (274) 1370 Value Destroyed (10588) 10588 Prototype IDs (58) 1160 Alien Tech Used (0) 0 Bonus (5087) 5087 TOTAL SCORE: 25205 Bonus ------- High Alert Combat Kills 2403 Follower Combat Kills 1865 Entered Garrisons 200 Aligned with FarCom 300 Met Imprinter 300 Was Imprinted 300 Met R17 at Cetus 500 Friendly Fire -781 Cogmind --------- Core Integrity 1063/1150 Matter 99/300 Energy 210/350 System Corruption 0% Temperature Cool (0) Movement Immobile (Siege) Location -4/Factory Parts ------- > --- POWER (1) -------- Quantum Reactor > --- PROPULSION (6) --- Centrium Heavy Treads Centrium Heavy Treads > --- UTILITY (8) ------ Advanced Heat Sink Advanced Signal Interpreter Centrium Medium Armor Plating > --- WEAPON (4) ------- Advanced Variable Charge Gun Advanced KE Penetrator Advanced KE Penetrator Mini Smartbomb Launcher > --- INVENTORY (5) ---- Enhanced Optical Array Wave Gun Advanced Variable Charge Gun Advanced Variable Charge Gun Peak State ------------ > --- POWER ------------ Quantum Reactor > --- PROPULSION ------- Centrium Heavy Treads Centrium Heavy Treads Enhanced Flexi-carbon Leg > --- UTILITY ---------- Advanced Heat Sink Medium Storage Unit Advanced Signal Interpreter Centrium Medium Armor Plating Powered Armor Medium Regenerative Plating Advanced Shield Generator > --- WEAPON ----------- Advanced Variable Charge Gun Advanced KE Penetrator Advanced KE Penetrator Mini Smartbomb Launcher > --- INVENTORY -------- Quantum Reactor Advanced Heat Sink Advanced Energy Well Enhanced Optical Array Wave Gun Advanced Variable Charge Gun Advanced Variable Charge Gun Shock Maul [Rating: 125] Favorites ----------- Power Enhanced Nuclear Core Engine F-cell Engine Power Core Enhanced Nuclear Core Reactor Quantum Reactor Propulsion Armored Huge Wheel Treads Improved Treads Leg Aluminum Leg Wheel Armored Huge Wheel Hover Unit Antigrav System Flight Unit VTOL Module Utility Medium Storage Unit Device Sensor Drone Bay Storage Medium Storage Unit Processor Advanced Signal Interpreter Hackware Hacking Suite Protection Improved Medium Armor Plating Weapon Gauss Rifle Energy Gun Gatling Laser Energy Cannon Beam Cannon Ballistic Gun Gauss Rifle Ballistic Cannon Tri-rail Accelerator Launcher Mini Smartbomb Launcher Impact Weapon Power Maul Slashing Weapon Ionic Axe Piercing Weapon Lance Build | -11 -10 -10 -10 -9 -8 -8 -8 -7 -7 -7 -7 -7 -7 -6 -6 -6 -5 -5 -5 -4 ------- Run | Jun Mat Min Exi Min Mat Gar Mat Fac Was Fac Low Low Zio Pro Fac Low Fac Ext Cet Fac Slots Evolved 12 | . . . . . 4 . . 2 . . . . . . 2 . 2 . . 2 Power . | . . . . . . . . . . . . . . . . . . . . . Propulsion 4 | . . . . . 2 . . . . . . . . . . . 1 . . 1 Utility 6 | . . . . . 2 . . . . . . . . . 2 . 1 . . 1 Weapon 2 | . . . . . . . . 2 . . . . . . . . . . . . Parts Attached 356 | 6 12 . . 4 31 20 15 8 2 50 8 7 5 2 45 4 77 39 14 7 Power 27 | 1 1 . . . 3 3 1 . . 5 . . . . 2 . 6 2 2 1 Engine 10 | 1 1 . . . 1 . 1 . . 1 . . . . 1 . 4 . . . Core 12 | . . . . . 2 3 . . . 4 . . . . 1 . 1 1 . . Reactor 5 | . . . . . . . . . . . . . . . . . 1 1 2 1 Propulsion 67 | 2 2 . . . 9 2 5 . 2 4 . . . . 5 3 20 11 2 . Treads 25 | . 2 . . . 9 2 3 . . . . . . . . . 3 4 2 . Leg 9 | 2 . . . . . . . . . . . . . . 2 . 1 4 . . Wheel 8 | . . . . . . . 2 . 2 3 . . . . 1 . . . . . Hover 20 | . . . . . . . . . . 1 . . . . 1 . 15 3 . . Flight 5 | . . . . . . . . . . . . . . . 1 3 1 . . . Utility 130 | 1 4 . . 3 8 7 3 1 . 25 4 5 . . 20 . 29 10 6 4 Device 62 | . 2 . . 3 3 4 . 1 . 14 2 3 . . 5 . 13 7 4 1 Storage 9 | 1 1 . . . . . . . . 2 . . . . 2 . 2 . 1 . Processor 16 | . 1 . . . 1 . . . . 1 . 1 . . 4 . 5 1 1 1 Hackware 1 | . . . . . . . . . . . . . . . . . 1 . . . Protection 42 | . . . . . 4 3 3 . . 8 2 1 . . 9 . 8 2 . 2 Artifact . | . . . . . . . . . . . . . . . . . . . . . Weapon 132 | 2 5 . . 1 11 8 6 7 . 16 4 2 5 2 18 1 22 16 4 2 Energy Gun 23 | 1 1 . . . 1 1 . 3 . 5 . . . . 4 . 4 2 1 . Energy Cannon 10 | . 1 . . . 4 2 1 . . . . . . . . . 1 1 . . Ballistic Gun 42 | 1 2 . . . . . . 2 . 9 2 1 2 1 11 1 6 1 2 1 Ballistic Cannon 10 | . 1 . . . 3 3 2 . . . . . . . . . 1 . . . Launcher 27 | . . . . 1 3 2 3 2 . 1 2 . 2 1 2 . 3 4 . 1 Special Weapon . | . . . . . . . . . . . . . . . . . . . . . Impact Weapon 9 | . . . . . . . . . . 1 . 1 1 . 1 . 2 2 1 . Slashing Weapon 8 | . . . . . . . . . . . . . . . . . 2 6 . . Piercing Weapon 3 | . . . . . . . . . . . . . . . . . 3 . . . Special Melee Weapon . | . . . . . . . . . . . . . . . . . . . . . Unidentified Prototypes 35 | . . . . 2 1 . 1 . . 4 . . 1 . 6 . 9 6 4 1 Corrupted Parts 2 | . . . . . . . . . . . . . . . 1 . . 1 . . System Corruption 7 | . . . . . . . . . . . . . . . 3 . . 4 . . Parts Lost 67 | . 1 . . . 4 8 2 . . 1 . . . . 23 . 3 13 3 9 Power 5 | . . . . . 1 . . . . 1 . . . . 1 . . 1 . 1 Propulsion 20 | . 1 . . . . 2 . . . . . . . . 6 . 1 7 2 1 Utility 28 | . . . . . 1 4 2 . . . . . . . 9 . 1 4 . 7 Weapon 14 | . . . . . 2 2 . . . . . . . . 7 . 1 1 1 . Highest Loss Streak 8 | . 1 . . . 2 2 1 . . 1 . . . . 7 . 1 6 3 8 To Critical Strikes 2 | . . . . . . 1 . . . . . . . . 1 . . . . . Average Slot Usage (%) 85 | . 98 100 100 100 87 87 86 78 34 80 84 84 84 84 80 16 89 79 91 77 Engine 3 | . 14 14 14 14 4 . 5 7 . 2 . . . . 2 . 4 4 . . Core 4 | . . . . . 4 9 3 . . 4 7 7 7 7 3 . . . . . Treads 6 | . 14 28 28 28 31 35 13 . . . . . . . . . . 2 4 10 Leg 1 | . 14 . . . . . . . . . . . . . 1 . . . 15 4 Wheel 8 | . . . . . . . 11 15 15 15 15 15 15 15 11 . . . . . Hover 4 | . . . . . . . . . . . . . . . . 6 25 22 . . Device 12 | . 11 14 14 14 9 4 9 14 8 17 14 14 15 15 13 . 11 9 17 15 Storage 7 | . 14 14 14 14 9 9 9 7 1 5 7 7 7 7 5 . 3 5 5 4 Processor 3 | . . . . . 3 . . . . . . . . . 5 . 12 12 11 9 Protection 7 | . . . . . 7 11 16 7 . 6 7 7 7 7 8 . 7 5 5 6 Energy Gun 5 | . 1 . . . . 5 . 17 5 8 7 7 7 7 6 . 3 . 10 8 Energy Cannon 2 | . 12 14 14 10 8 3 8 . . . . . . . . . . . . . Ballistic Gun 8 | . 2 . . . . . . 6 1 16 14 14 15 15 10 . 4 . 9 7 Ballistic Cannon 2 | . 10 14 14 14 8 8 8 . . . . . . . . . 2 4 . . Impact Weapon 3 | . . . . . . . . . . 2 7 7 7 7 5 . . . 1 3 Naked Turns 61 | . . . . . . . . . . . . . . . 61 . . . . . Heaviest Build 86 | 11 52 52 52 53 69 82 76 86 86 56 56 56 56 56 75 3 52 61 66 75 Greatest Support 160 | 20 40 40 40 40 91 91 87 56 56 56 56 56 56 56 56 12 53 76 160 160 Greatest Overweight (x) 16 | . 2 1 1 1 1 1 2 1 1 1 . . . . 3 . 1 16 1 . Average Overweight (x) . | . . 1 1 1 . . . 1 . . . . . . . . . . . . Largest Inventory Capacity 20 | 8 20 20 20 20 20 20 20 20 20 10 10 10 10 10 15 5 10 10 10 10 Average Capacity 12 | 6 14 20 20 20 20 20 20 20 7 8 10 10 10 10 11 5 8 10 10 9 Most Carried 20 | 4 8 9 12 14 20 20 20 20 20 10 10 10 10 10 15 5 10 10 10 10 Average Carried 11 | 1 7 8 11 13 18 19 19 19 6 7 9 10 10 10 10 5 8 8 9 9 Final Capacity 20 | 8 20 20 20 20 20 20 20 20 5 10 10 10 10 10 5 5 10 10 10 5 Final Carried 20 | 4 8 8 12 14 20 20 20 20 5 10 10 10 10 10 5 5 10 10 10 4 Class Distribution -------------------- 42% | Mutant 33% | Tank 12% | Scavenger-Mutant 3% | Scavenger-Skirmisher Dominant Class ---------------- Mutant | -10/Materials Mutant | -10/Mines Mutant | -10/Exiles Mutant | -9/Mines Mutant | -8/Materials Mutant | -8/Garrison Mutant | -8/Materials Tank | -7/Factory Mutant | -7/Waste Tank | -7/Factory Tank | -7/Lower Caves Tank | -7/Lower Caves Mutant | -7/Zion Tank | -6/Proximity Caves Tank | -6/Factory Tank | -6/Lower Caves Scavenger-Mutant | -5/Factory Scavenger-Mutant | -5/Extension Scavenger-Skirmisher | -5/Cetus Scavenger-Gunner | -4/Factory Resources | -11 -10 -10 -10 -9 -8 -8 -8 -7 -7 -7 -7 -7 -7 -6 -6 -6 -5 -5 -5 -4 ----------- Run | Jun Mat Min Exi Min Mat Gar Mat Fac Was Fac Low Low Zio Pro Fac Low Fac Ext Cet Fac Matter Collected 8559 | 198 318 7 . 17 523 622 257 306 . 1463 190 196 93 46 1238 60 1423 1320 282 . Remotely 10 | . . . . . . . . . . . . . . . . . 10 . . . Salvage Created 10720 | . 623 . . 23 702 746 458 411 . 1710 134 118 . 74 2344 . 1772 1271 291 43 Parts 525 | . 37 . . 3 32 39 32 23 . 69 2 5 . 5 105 . 105 53 10 5 Haulers Intercepted 14 | . 2 . . . 1 . . 1 . 2 . . . . 5 . 3 . . . Recyclers Shooed 11 | . 4 . . . . . . . . 3 . . . . 2 . 1 1 . . Parts Field Recycled . | . . . . . . . . . . . . . . . . . . . . . Retrieved Matter . | . . . . . . . . . . . . . . . . . . . . . Parts Self-Destructed 20 | . . . . . . . . . . . 2 4 4 7 . 3 . . . . Prevented 3 | . . . . . . . . . . . . 3 . . . . . . . . Kills | -11 -10 -10 -10 -9 -8 -8 -8 -7 -7 -7 -7 -7 -7 -6 -6 -6 -5 -5 -5 -4 ------- Run | Jun Mat Min Exi Min Mat Gar Mat Fac Was Fac Low Low Zio Pro Fac Low Fac Ext Cet Fac Combat Hostiles Destroyed 199 | . 11 . . 3 19 24 15 8 . 20 4 3 . 3 32 . 26 22 4 5 Melee 10 | . . . . . . . . . . . . . . . . . 4 6 . . Guns 73 | . 2 . . . . 2 . 6 . 20 2 3 . 1 26 . 8 . 3 . Cannons 70 | . 9 . . . 13 17 6 . . . . . . . . . 12 13 . . AOE 45 | . . . . 3 6 5 9 2 . . 2 . . 2 6 . 2 3 . 5 Classes Destroyed 18 | . 6 . . . 2 3 1 . . . . . . . 4 . . 2 . . Worker 17 | . 1 . . . 2 . . 2 . 2 . . . . 5 . 5 . . . Builder 11 | . 1 . . . . . 1 . . 3 . . . . 1 . 2 3 . . Tunneler 1 | . . . . . . . . . . . . . . . 1 . . . . . Hauler 14 | . 2 . . . 1 . . 1 . 2 . . . . 5 . 3 . . . Recycler 14 | . 2 . . . 1 . . . . 5 . . . . 2 . 2 2 . . Mechanic 1 | . . . . . . . . . . . . . . . . . . 1 . . Operator 1 | . . . . . . . . . . . . . . . 1 . . . . . Watcher 15 | . . . . . . . 1 1 . 3 . . . . 1 . 6 3 . . Swarmer 47 | . 3 . . 3 4 7 3 4 . . . . . 2 4 . 9 3 . 5 Saboteur 1 | . . . . . . . . . . . . . . . 1 . . . . . Grunt 74 | . 8 . . . 11 2 5 3 . 8 4 3 . 1 14 . 3 12 . . Brawler 7 | . . . . . 1 2 2 . . 2 . . . . . . . . . . Duelist 5 | . . . . . . 1 1 1 . . . . . . . . 1 1 . . Protector 1 | . . . . . . . . . . . . . . . . . . 1 . . Sentry 28 | . . . . . 3 6 3 . . 5 . . . . 4 . 4 3 . . Specialist 2 | . . . . . . . . . . . . . . . 1 . . 1 . . Hunter 8 | . . . . . . 3 1 . . . . . . . 4 . . . . . Programmer 22 | . . . . . . 3 . . . 5 . . . . 4 . 9 1 . . Cetus Guard 4 | . . . . . . . . . . . . . . . . . . . 4 . Enhanced Grunt 1 | . . . . . . . . . . . . . . . . . . . 1 . Best Kill Streak 8 | . 3 . . 3 5 4 7 6 . 5 4 2 . 2 8 . 6 5 3 5 Combat Bots Only 7 | . 3 . . 3 4 4 7 4 . 4 4 2 . 2 5 . 6 4 3 5 Max Kills in Single Turn 5 | . 2 . . 3 3 3 3 5 . 2 2 1 . 2 4 . 2 2 1 3 Gunslinging 1 | . . . . . . . . . . 1 . . . . 1 . 1 . . . Exploded 3 | . . . . 3 3 3 2 2 . . 2 . . 2 2 . 2 2 . 3 Melee 1 | . . . . . . . . . . . . . . . . . 1 1 . . Uniques/NPCs Destroyed . | . . . . . . . . . . . . . . . . . . . . . Combat | -11 -10 -10 -10 -9 -8 -8 -8 -7 -7 -7 -7 -7 -7 -6 -6 -6 -5 -5 -5 -4 -------- Run | Jun Mat Min Exi Min Mat Gar Mat Fac Was Fac Low Low Zio Pro Fac Low Fac Ext Cet Fac Damage Taken 16525 | . 408 . 117 65 1212 1595 569 225 . 1487 156 61 . 101 4394 15 1105 1839 786 2390 Core 1702 | . 46 . 35 6 14 74 81 45 . 139 13 . . 16 745 15 136 191 59 87 Absorbed by Shields 598 | . . . . . . . . . . . . . . . . . . 212 161 225 Reduced by Siege Mode 166 | . . . . . . . . . . . . . . . . . . . . 166 Redirected to Shielding 142 | . . . . . . . . . . . . . . . . . 124 18 . . Regen/Repaired (Parts) 430 | . . . . . . . . . . . . . . . . . . 207 155 68 Core Remaining (%) 62 | 100 . . . 65 . . 69 . . . . . . 69 . 10 . . 61 . Volleys Fired 622 | . 52 . 1 1 51 65 31 17 . 88 7 5 . 2 98 . 89 78 23 14 Largest 4 | . 2 . 1 2 2 2 2 4 . 4 3 3 . 3 3 . 3 1 4 3 Hottest 256 | . 100 . 35 68 104 155 155 256 . 219 147 136 . 147 147 . 174 80 251 150 Shots Fired 1309 | . 104 . 1 2 102 128 52 61 . 255 21 19 . 6 258 . 128 74 64 34 Gun 845 | . 30 . . . . 30 . 60 . 255 18 19 . 5 254 . 79 . 63 32 Cannon 418 | . 74 . 1 1 95 96 44 . . . . . . . . . 46 60 1 . Launcher 46 | . . . . 1 7 2 8 1 . . 3 . . 1 4 . 3 14 . 2 Special . | . . . . . . . . . . . . . . . . . . . . . Kinetic 802 | . 48 . 1 1 46 61 18 15 . 186 11 12 . 3 179 . 100 60 37 24 Thermal 435 | . 48 . . . 49 65 26 45 . 69 7 7 . 2 75 . 7 . 27 8 Explosive 46 | . . . . 1 7 2 8 1 . . 3 . . 1 4 . 3 14 . 2 Electromagnetic 8 | . 8 . . . . . . . . . . . . . . . . . . . Phasic 18 | . . . . . . . . . . . . . . . . . 18 . . . Robot Hit Streak 38 | . 8 . . . 14 18 6 12 . 19 4 8 . 3 22 . 12 23 17 38 Robot Miss Streak 12 | . 4 . . 1 4 4 4 6 . 10 3 1 . 1 12 . 8 3 2 . Penetration Max 2 | . . . . . . . . 1 . 1 . . . . 2 . 1 . 1 . Secondary Targets 8 | . . . . . . . . 1 . 3 . . . . 3 . 1 . . . Max Gunslinging Chain 1 | . . . . . . . . 1 . 1 . . . . 1 . 1 . . . Shots Hit Robots 864 | . 55 . . . 65 61 22 39 . 160 17 12 . 3 167 . 102 81 46 34 Core Hits 507 | . 22 . . 3 43 30 26 22 . 90 10 7 . 6 90 . 67 64 19 8 Critical Kills 9 | . . . . . . . . . . . . . . . 6 . 1 2 . . Critical Parts Destroyed 25 | . . . . . . . . . . 1 1 . . . 20 . . . 3 . Critical Strikes 56 | . . . . . 2 2 . . . 2 1 . . . 28 . 6 5 8 2 Burn 10 | . . . . . . 2 . . . 1 . . . . 2 . 1 . 4 . Destroy 31 | . . . . . . . . . . . 1 . . . 23 . 1 . 4 2 Blast 6 | . . . . . 2 . . . . . . . . . . . 1 3 . . Smash 6 | . . . . . . . . . . 1 . . . . 3 . . 2 . . Impale 1 | . . . . . . . . . . . . . . . . . 1 . . . Intensify 2 | . . . . . . . . . . . . . . . . . 2 . . . Melee Attacks 132 | . . . . . . . . . . 3 1 . . . 34 . 44 50 . . Impact 49 | . . . . . . . . . . 3 1 . . . 34 . 1 10 . . Slashing 59 | . . . . . . . . . . . . . . . . . 19 40 . . Piercing 24 | . . . . . . . . . . . . . . . . . 24 . . . Sneak Attacks 17 | . . . . . . . . . . 2 . . . . 3 . 8 4 . . Combat Hostiles 1 | . . . . . . . . . . . . . . . . . . 1 . . Follow-up Attacks 2 | . . . . . . . . . . . . . . . . . . 2 . . Damage Inflicted 30763 | . 924 5 . 98 1945 1715 1449 952 . 3752 551 209 . 311 5680 . 5040 5537 1221 1374 Guns 11535 | . 178 . . . . 256 . 697 . 3549 343 209 . 61 3120 . 1064 . 1182 876 Cannons 9288 | . 729 . . . 1214 1144 647 . . . . . . . . . 2363 3152 39 . Explosions 6248 | . . . . 93 680 315 781 235 . . 208 . . 250 1747 . 432 1009 . 498 Melee 3486 | . . . . . . . . . . 162 . . . . 799 . 1181 1344 . . Ramming 206 | . 17 5 . 5 51 . 21 20 . 41 . . . . 14 . . 32 . . Kinetic 14080 | . 383 . . . 636 718 255 142 . 2286 180 120 . 41 1785 . 3114 3152 647 621 Thermal 7122 | . 509 . . 31 578 682 392 555 . 1263 163 89 . 20 1929 . 82 . 574 255 Explosive 5623 | . . . . 62 680 315 781 235 . . 208 . . 250 1153 . 432 1009 . 498 Electromagnetic 15 | . 15 . . . . . . . . . . . . . . . . . . . Impact 1393 | . . . . . . . . . . 162 . . . . 799 . . 432 . . Slashing 1589 | . . . . . . . . . . . . . . . . . 677 912 . . Piercing 504 | . . . . . . . . . . . . . . . . . 504 . . . Phasic 231 | . . . . . . . . . . . . . . . . . 231 . . . Highest Corruption 21 | . . . . . 1 4 4 . 7 10 10 10 10 . 12 12 4 21 21 . Average Corruption 7 | . . . . . 1 2 4 . 7 8 10 10 10 . 5 12 2 15 21 . Corruption Purged 1 | . . . . . . . . . . . . . . . . . 1 . . . Corruption Blocked . | . . . . . . . . . . . . . . . . . . . . . Effects 353 | . . . . . 2 20 22 . 1 86 16 29 15 . 42 1 18 87 14 . Message Errors 87 | . . . . . 1 4 3 . . 21 7 7 4 . 12 . 5 21 2 . Matter Fused 85 | . . . . . . 5 5 . 1 20 5 7 5 . 9 . 3 24 1 . Heat Flow Errors 42 | . . . . . . 2 3 . . 16 . 4 2 . 5 . 1 8 1 . Energy Discharges 36 | . . . . . . 3 4 . . 8 2 3 1 . 2 . 5 7 1 . Parts Rejected 6 | . . . . . . 1 . . . 1 . . . . 1 . . 3 . . Parts Fused 3 | . . . . . . . . . . . 1 1 . . . . . 1 . . Data Loss (minor) 37 | . . . . . . 1 3 . . 8 1 3 3 . 3 . 1 12 2 . Data Loss (major) 13 | . . . . . 1 2 . . . 5 . . . . . . 1 3 1 . Misfires 21 | . . . . . . 1 2 . . 4 . 4 . . 5 . 2 1 2 . Alerts 5 | . . . . . . 1 1 . . . . . . . 1 1 . . 1 . Misdirections 2 | . . . . . . . . . . . . . . . . . . 2 . . Weapon Failures 16 | . . . . . . . 1 . . 3 . . . . 4 . . 5 3 . Overload Shots . | . . . . . . . . . . . . . . . . . . . . . Overflow Damage 1347 | . 8 . . . 2 26 37 33 . 147 16 . . . 355 . 479 212 . 32 Projectiles 169 | . 8 . . . . 8 37 . . . . . . . . . 83 33 . . Explosions 268 | . . . . . 2 18 . 33 . . 16 . . . 95 . 57 15 . 32 Melee 910 | . . . . . . . . . . 147 . . . . 260 . 339 164 . . Knockbacks 81 | . 6 . . . 8 6 1 . . 1 . . . . 5 . 23 31 . . Impact 8 | . . . . . . . . . . 1 . . . . 5 . . 2 . . Kinetic 64 | . 4 . . . 8 5 1 . . . . . . . . . 22 24 . . Secondary 9 | . 2 . . . . 1 . . . . . . . . . . 1 5 . . Self-Inflicted Damage 173 | . . . . 43 . 19 10 9 . 20 . . . 50 6 . . 16 . . Shots 4 | . . . . 2 . 1 . . . . . . . 1 . . . . . . Rammed 20 | . 4 1 . 1 5 . 2 2 . 2 . . . . 2 . . 1 . . Targets Rammed 23 | . 7 1 . 1 5 . 2 2 . 2 . . . . 2 . . 1 . . Kicked 2 | . 2 . . . . . . . . . . . . . . . . . . . Crushed 1 | . 1 . . . . . . . . . . . . . . . . . . . Highest Temperature 457 | . 195 . . 4 246 317 169 271 . 457 45 237 228 . 166 . 346 292 244 87 Average Temperature 66 | . 56 . . 4 62 70 35 99 . 83 17 105 124 . 38 . 58 74 82 45 Received Heat Transfer 3462 | . 204 . . . 567 288 207 81 . 429 90 36 . . 804 . 90 504 45 117 Effects 8 | . . . . . . . . . . 2 . . . . . . . 6 . . Interference 6 | . . . . . . . . . . . . . . . . . . 6 . . Matter Decay 1 | . . . . . . . . . . 1 . . . . . . . . . . Short Circuit 1 | . . . . . . . . . . 1 . . . . . . . . . . Siege Activations 1 | . . . . . . . . . . . . . . . . . . . . 1 Total Turns 24 | . . . . . . . . . . . . . . . . . . . . 24 Longest Duration 24 | . . . . . . . . . . . . . . . . . . . . 24 Robots Corrupted . | . . . . . . . . . . . . . . . . . . . . . Combat Hostiles . | . . . . . . . . . . . . . . . . . . . . . Parts Fried 2 | . . . . . . . . . . . . . . . 2 . . . . . Impact Corruptions 13 | . . . . . . 1 . . . 4 . . . . 8 . . . . . Robots Melted 1 | . . . . . . . . . . . . . . . . . . . 1 . Combat Hostiles 1 | . . . . . . . . . . . . . . . . . . . 1 . Parts Melted 17 | . 3 . . . 1 3 . 2 . 1 . . . . 6 . . . 1 . Heat Transferred 12821 | . 1073 . . 50 1221 1308 600 1128 . 2335 375 200 . 50 2712 . 236 . 1237 296 Parts Sabotaged 2 | . . . . . . . . . . . . . . . . . . 2 . . Parts Stolen . | . . . . . . . . . . . . . . . . . . . . . Parts Stripped . | . . . . . . . . . . . . . . . . . . . . . Power Chain Reactions . | . . . . . . . . . . . . . . . . . . . . . Missiles Intercepted . | . . . . . . . . . . . . . . . . . . . . . Alert | -11 -10 -10 -10 -9 -8 -8 -8 -7 -7 -7 -7 -7 -7 -6 -6 -6 -5 -5 -5 -4 ------- Run | Jun Mat Min Exi Min Mat Gar Mat Fac Was Fac Low Low Zio Pro Fac Low Fac Ext Cet Fac Peak Influence 1891 | . 191 10 . 98 388 1196 965 452 158 385 . . . . 833 . 1528 1891 1312 840 Initial 1055 | . . . . . 37 185 583 371 158 107 . . . . 50 . 365 748 1055 728 Average 464 | . 80 9 . 27 157 659 762 329 156 201 . . . . 223 . 685 962 1189 753 Maximum Alert Level 5 | . . . . . 1 4 3 2 . 1 . . . . 3 . 4 5 4 3 Low Security (%) 31 | 100 100 100 . 100 68 3 . . 100 52 . . . . 51 . . . . . Level 1 20 | . . . . . 31 5 . 88 . 47 . . . . 38 . 6 . . . Level 2 21 | . . . . . . 47 53 11 . . . . . . 7 . 58 17 . . Level 3 18 | . . . . . . 42 46 . . . . . . . 3 . 21 56 10 100 Level 4 6 | . . . . . . 1 . . . . . . . . . . 14 16 89 . Level 5 1 | . . . . . . . . . . . . . . . . . . 9 . . High Security . | . . . . . . . . . . . . . . . . . . . . . Max Security . | . . . . . . . . . . . . . . . . . . . . . Squads Dispatched 53 | . 4 . . . 3 . 7 1 . 7 . . . . 13 . 10 7 . 1 Investigation 7 | . 2 . . . 1 . . . . 1 . . . . 1 . . 1 . 1 Extermination 15 | . . . . . . . . . . 5 . . . . 4 . 6 . . . Reinforcement 16 | . 2 . . . . . 3 1 . 1 . . . . 7 . 1 1 . . Assault 10 | . . . . . . . 1 . . . . . . . 1 . 3 5 . . Garrison 5 | . . . . . 2 . 3 . . . . . . . . . . . . . Intercept . | . . . . . . . . . . . . . . . . . . . . . Searches Triggered . | . . . . . . . . . . . . . . . . . . . . . Construction Impeded 7 | . . . . . . . 2 1 . 1 . . . . 2 . . 1 . . Haulers Reinforced 3 | . . . . . . . . . . . . . . . 2 . 1 . . . Active Scanning Responses . | . . . . . . . . . . . . . . . . . . . . . Cargo Convoy Interrupts 1 | . . . . . . . . . . . . . . . 1 . . . . . Stealth | -11 -10 -10 -10 -9 -8 -8 -8 -7 -7 -7 -7 -7 -7 -6 -6 -6 -5 -5 -5 -4 --------- Run | Jun Mat Min Exi Min Mat Gar Mat Fac Was Fac Low Low Zio Pro Fac Low Fac Ext Cet Fac Distress Signals 15 | . 4 . . . 1 . 1 . . 2 . . . . 2 . . 3 2 . Communications Jammed . | . . . . . . . . . . . . . . . . . . . . . Distress Signals . | . . . . . . . . . . . . . . . . . . . . . Times Spotted 399 | . 21 . 7 3 28 26 22 11 6 36 4 3 . 6 73 3 66 63 13 8 Peak Tracking Total 11 | . 5 . 9 3 5 4 6 4 6 5 4 2 . 4 9 3 8 11 5 6 Tactical Retreats 27 | . 1 . . . 1 . . . . 5 . . . 1 6 . 6 7 . . Traps | -11 -10 -10 -10 -9 -8 -8 -8 -7 -7 -7 -7 -7 -7 -6 -6 -6 -5 -5 -5 -4 ------- Run | Jun Mat Min Exi Min Mat Gar Mat Fac Was Fac Low Low Zio Pro Fac Low Fac Ext Cet Fac Traps Triggered 14 | . 1 . . . . 4 . 1 . . . . . . 4 . 1 3 . . Indirectly . | . . . . . . . . . . . . . . . . . . . . . Trap Hack Attempts . | . . . . . . . . . . . . . . . . . . . . . Triggered . | . . . . . . . . . . . . . . . . . . . . . Disarmed . | . . . . . . . . . . . . . . . . . . . . . Reprogrammed . | . . . . . . . . . . . . . . . . . . . . . Reused . | . . . . . . . . . . . . . . . . . . . . . Traps Extracted . | . . . . . . . . . . . . . . . . . . . . . Installed . | . . . . . . . . . . . . . . . . . . . . . Triggered 3 | . . 1 . . . . . . . . . 1 . . 1 . . . . . Machines | -11 -10 -10 -10 -9 -8 -8 -8 -7 -7 -7 -7 -7 -7 -6 -6 -6 -5 -5 -5 -4 ---------- Run | Jun Mat Min Exi Min Mat Gar Mat Fac Was Fac Low Low Zio Pro Fac Low Fac Ext Cet Fac Machines Disabled 38 | . . . 2 1 1 4 4 1 . . . . . . 19 . 4 2 . . Max in Single Turn 12 | . . . 1 1 1 1 2 1 . . . . . . 12 . 2 1 . . Garrison Access 1 | . . . . . . . . . . 1 . . . . . . . . . . Garrison Relay 2 | . . . . . . 2 . . . . . . . . . . . . . . Machines Repaired . | . . . . . . . . . . . . . . . . . . . . . Machines Sabotaged . | . . . . . . . . . . . . . . . . . . . . . Overloaded Fab Kills . | . . . . . . . . . . . . . . . . . . . . . Hacking | -11 -10 -10 -10 -9 -8 -8 -8 -7 -7 -7 -7 -7 -7 -6 -6 -6 -5 -5 -5 -4 --------- Run | Jun Mat Min Exi Min Mat Gar Mat Fac Was Fac Low Low Zio Pro Fac Low Fac Ext Cet Fac Machines Accessed 43 | . 3 . 2 1 6 2 1 1 . 14 . 3 . . 3 . 4 2 . 1 Terminals 21 | . 3 . . . 5 2 1 1 . 7 . . . . . . . 2 . . Fabricators 5 | . . . . . . . . . . 2 . . . . 1 . 2 . . . Repair Stations . | . . . . . . . . . . . . . . . . . . . . . Recycling Units 1 | . . . . . . . . . . 1 . . . . . . . . . . Scanalyzers 2 | . . . . . . . . . . 2 . . . . . . . . . . Garrison Access 8 | . . . . . 1 . . . . 2 . . . . 2 . 2 . . 1 Total Hacks 81 | . 6 . 2 1 10 4 2 4 . 29 . 5 . . 7 . 6 3 . 2 Successful 32 | . 1 . 2 1 4 1 2 3 . 12 . 5 . . 1 . . . . . Failed 49 | . 5 . . . 6 3 . 1 . 17 . . . . 6 . 6 3 . 2 Catastrophic 11 | . 3 . . . 1 1 . . . 1 . . . . 1 . 3 . . 1 Database Lockouts . | . . . . . . . . . . . . . . . . . . . . . Manual 91 | . 5 . 2 . 5 . 1 3 . 8 . . . . 20 . 34 13 . . Terminals 42 | . 6 . . . 9 4 2 4 . 14 . . . . . . . 3 . . Fabricators 9 | . . . . . . . . . . 4 . . . . 2 . 3 . . . Repair Stations . | . . . . . . . . . . . . . . . . . . . . . Recycling Units 1 | . . . . . . . . . . 1 . . . . . . . . . . Scanalyzers 6 | . . . . . . . . . . 6 . . . . . . . . . . Garrison Access 15 | . . . . . 1 . . . . 4 . . . . 5 . 3 . . 2 Terminal Hacks 18 | . 1 . 2 1 3 1 2 1 . 2 . 5 . . . . . . . . Record 4 | . . . 1 . . . . . . . . 3 . . . . . . . . Open Door 3 | . . . . 1 . . . . . . . 2 . . . . . . . . Branch Access Points 2 | . 1 . . . . . . . . 1 . . . . . . . . . . Emergency Access Points 1 | . . . . . . 1 . . . . . . . . . . . . . . Terminal Index 1 | . . . . . 1 . . . . . . . . . . . . . . . Locate Traps 1 | . . . . . . . 1 . . . . . . . . . . . . . Hauler Manifests 2 | . . . . . . . . 1 . 1 . . . . . . . . . . Zone Layout 3 | . . . . . 2 . 1 . . . . . . . . . . . . . EX-Prototype ID Bank 1 | . . . 1 . . . . . . . . . . . . . . . . . Fabricator Hacks 1 | . . . . . . . . . . 1 . . . . . . . . . . Network Status 1 | . . . . . . . . . . 1 . . . . . . . . . . Repair Station Hacks . | . . . . . . . . . . . . . . . . . . . . . Recycling Unit Hacks 1 | . . . . . . . . . . 1 . . . . . . . . . . Report Inventory 1 | . . . . . . . . . . 1 . . . . . . . . . . Scanalyzer 4 | . . . . . . . . . . 4 . . . . . . . . . . Insert Component 2 | . . . . . . . . . . 2 . . . . . . . . . . Analyze 2 | . . . . . . . . . . 2 . . . . . . . . . . Garrison Access Hacks 2 | . . . . . 1 . . . . 1 . . . . . . . . . . Unlock Access 1 | . . . . . 1 . . . . . . . . . . . . . . . Seal Access 1 | . . . . . . . . . . 1 . . . . . . . . . . Unauthorized Hacks 5 | . . . . . . . . 1 . 3 . . . . 1 . . . . . Terminals 4 | . . . . . . . . 1 . 3 . . . . . . . . . . Botnet 4 | . . . . . . . . 1 . 3 . . . . . . . . . . Fabricators 1 | . . . . . . . . . . . . . . . 1 . . . . . Haulers 1 | . . . . . . . . . . . . . . . 1 . . . . . Repair Stations . | . . . . . . . . . . . . . . . . . . . . . Recycling Units . | . . . . . . . . . . . . . . . . . . . . . Scanalyzers . | . . . . . . . . . . . . . . . . . . . . . Garrison Access . | . . . . . . . . . . . . . . . . . . . . . Data Cores Recovered 1 | . . . . . . . . . . . . . . . . . 1 . . . Used . | . . . . . . . . . . . . . . . . . . . . . Hacking Detections 31 | . 2 . . . 5 2 1 1 . 11 . . . . 3 . 4 1 . 1 Full Trace Events 7 | . 2 . . . 1 1 . . . 1 . . . . 1 . . . . 1 Feedback Events . | . . . . . . . . . . . . . . . . . . . . . Feedback Blocked . | . . . . . . . . . . . . . . . . . . . . . Robot Schematics Acquired 4 | . . . . . . . . . . . . . . . . . 4 . . . Robots Built . | . . . . . . . . . . . . . . . . . . . . . Authchips . | . . . . . . . . . . . . . . . . . . . . . Time . | . . . . . . . . . . . . . . . . . . . . . Total Robot Build Rating . | . . . . . . . . . . . . . . . . . . . . . Part Schematics Acquired 1 | . . . . . . . . . . 1 . . . . . . . . . . Parts Built . | . . . . . . . . . . . . . . . . . . . . . Authchips . | . . . . . . . . . . . . . . . . . . . . . Time . | . . . . . . . . . . . . . . . . . . . . . Total Part Build Rating . | . . . . . . . . . . . . . . . . . . . . . Parts Repaired . | . . . . . . . . . . . . . . . . . . . . . Time . | . . . . . . . . . . . . . . . . . . . . . Parts Recycled . | . . . . . . . . . . . . . . . . . . . . . Recycled Matter . | . . . . . . . . . . . . . . . . . . . . . Retrieved Matter . | . . . . . . . . . . . . . . . . . . . . . Retrieved Components . | . . . . . . . . . . . . . . . . . . . . . Parts Scanalyzed 1 | . . . . . . . . . . 1 . . . . . . . . . . Part Schematics Acquired 1 | . . . . . . . . . . 1 . . . . . . . . . . Parts Damaged . | . . . . . . . . . . . . . . . . . . . . . Bothacking | -11 -10 -10 -10 -9 -8 -8 -8 -7 -7 -7 -7 -7 -7 -6 -6 -6 -5 -5 -5 -4 ------------ Run | Jun Mat Min Exi Min Mat Gar Mat Fac Was Fac Low Low Zio Pro Fac Low Fac Ext Cet Fac Used RIF Installer . | . . . . . . . . . . . . . . . . . . . . . Robots Hacked . | . . . . . . . . . . . . . . . . . . . . . Non-combat . | . . . . . . . . . . . . . . . . . . . . . Combat . | . . . . . . . . . . . . . . . . . . . . . Robot Hacks Applied . | . . . . . . . . . . . . . . . . . . . . . Relay Couplers Released 8 | . . . . . . 8 . . . . . . . . . . . . . . Machine Destruction 8 | . . . . . . 8 . . . . . . . . . . . . . . Fabnet Peak Effective % . | . . . . . . . . . . . . . . . . . . . . . Robots Rewired 10 | . . . . . . . . . . . . . . . . . . 10 . . Allies Hacked 3 | . . . . . . . . . . . . . . . . . . 2 1 . Hacks Repelled . | . . . . . . . . . . . . . . . . . . . . . Allies | -11 -10 -10 -10 -9 -8 -8 -8 -7 -7 -7 -7 -7 -7 -6 -6 -6 -5 -5 -5 -4 -------- Run | Jun Mat Min Exi Min Mat Gar Mat Fac Was Fac Low Low Zio Pro Fac Low Fac Ext Cet Fac Total Allies 41 | . . 3 . . . . . . 1 . . . 4 . 3 1 2 27 . . Largest Group 14 | . . 3 3 . . . . . 1 . . . 4 4 3 1 2 14 4 . Highest-Rated Group 546 | . . 40 40 . . . . . 31 . . . 155 155 210 146 170 546 188 . Highest-Rated Ally 159 | . . 16 16 . . . . . 31 . . . 39 39 70 146 85 159 96 . Zionite Dispatches 5 | . . . . . . . . . . . . . . . 1 . 1 3 . . Heavy 1 | . . . . . . . . . . . . . . . . . 1 . . . Light 1 | . . . . . . . . . . . . . . . 1 . . . . . Melee Resupply 2 | . . . . . . . . . . . . . . . . . . 2 . . Hacking Resupply 1 | . . . . . . . . . . . . . . . . . . 1 . . Total Orders 65 | . . . . . 1 1 . 1 . 17 4 7 5 1 16 . . 12 . . STAY 11 | . . . . . . . . . . 2 . 2 . . 2 . . 5 . . FOLLOW 12 | . . . . . . . . . . 3 1 2 . . 2 . . 4 . . DROP 3 | . . . . . . . . . . . . . . . . . . 3 . . EXPLORE 2 | . . . . . . . . . . 2 . . . . . . . . . . RETURN 37 | . . . . . 1 1 . 1 . 10 3 3 5 1 12 . . . . . Ally Attacks 266 | . . . 9 . . . . . 14 . . . . 5 28 2 17 132 59 . Total Damage 6373 | . . . 81 . . . . . 228 . . . . 56 374 71 897 3197 1469 . Kills 53 | . . . 1 . . . . . . . . . . 2 6 2 11 23 8 . Allies Corrupted 1 | . . . . . . . . . . . . . . . . . 1 . . . Allies Melted 1 | . . . . . . . . . . . . . . . . . . 1 . . Intel | -11 -10 -10 -10 -9 -8 -8 -8 -7 -7 -7 -7 -7 -7 -6 -6 -6 -5 -5 -5 -4 ------- Run | Jun Mat Min Exi Min Mat Gar Mat Fac Was Fac Low Low Zio Pro Fac Low Fac Ext Cet Fac Robot Analysis Total . | . . . . . . . . . . . . . . . . . . . . . Derelict Logs Recovered 5 | . . . . . . . . . . . 1 2 1 1 . . . . . . Drone Launches 43 | . . . . . 1 1 . 1 . 11 2 4 5 2 16 . . . . . Drone Recoveries 40 | . . . . . 1 1 . 1 . 10 2 3 6 1 15 . . . . . Zionite Intel Received 11 | . . . . . . . . . . . . . . . 4 . 7 . . . Emergency Access 1 | . . . . . . . . . . . . . . . . . 1 . . . Guard Positions 1 | . . . . . . . . . . . . . . . . . 1 . . . Component Stockpiles 1 | . . . . . . . . . . . . . . . . . 1 . . . Unaware Schematics 1 | . . . . . . . . . . . . . . . . . 1 . . . Unaware Analyses 2 | . . . . . . . . . . . . . . . 1 . 1 . . . Trap Installations 1 | . . . . . . . . . . . . . . . . . 1 . . . Active Terminals 1 | . . . . . . . . . . . . . . . 1 . . . . . Active Garrisons 1 | . . . . . . . . . . . . . . . 1 . . . . . Depthwide Sectors/0 1 | . . . . . . . . . . . . . . . . . 1 . . . Depthwide Sectors/-1 1 | . . . . . . . . . . . . . . . 1 . . . . . Exploration | -11 -10 -10 -10 -9 -8 -8 -8 -7 -7 -7 -7 -7 -7 -6 -6 -6 -5 -5 -5 -4 ------------- Run | Jun Mat Min Exi Min Mat Gar Mat Fac Was Fac Low Low Zio Pro Fac Low Fac Ext Cet Fac Turns Passed 28729 | 69 1377 396 710 282 887 2130 851 763 89 2701 433 841 8600 343 2683 19 3122 1978 311 144 Spaces Moved 16620 | 50 649 149 294 113 378 1178 350 587 135 2054 372 681 987 309 1933 29 4666 1512 138 56 Core 281 | 5 . . . . . . . . 130 5 . . . . 123 15 . 3 . . Treads 2975 | . 313 149 294 113 378 1178 162 . . . . . . . . . 106 133 93 56 Legs 500 | 45 336 . . . . . . . . . . . . . 12 . 17 45 45 . Wheels 6960 | . . . . . . . 188 587 5 2049 372 681 987 309 1782 . . . . . Hover 5209 | . . . . . . . . . . . . . . . 14 . 3864 1331 . . Flight 695 | . . . . . . . . . . . . . . . 2 14 679 . . . Fastest Speed 29 | 50 120 240 240 240 156 152 115 115 50 50 100 100 100 100 35 29 29 44 112 160 Average Speed 97 | 113 179 240 240 240 172 157 132 115 52 100 100 100 100 100 107 40 46 66 148 160 Slowest Speed 850 | 120 320 240 240 240 240 230 152 115 115 115 100 100 100 100 330 50 210 850 190 160 Overloaded Moves . | . . . . . . . . . . . . . . . . . . . . . Propulsion Burnouts . | . . . . . . . . . . . . . . . . . . . . . Robots Hopped 13 | . . . . . . . . . . . . . . . 3 . 10 . . . Cave-ins Triggered . | . . . . . . . . . . . . . . . . . . . . . Exploration Rate (%) 49 | 3 90 28 61 29 36 89 34 15 81 45 57 75 89 57 43 3 84 65 56 3 Regions Visited 20 Branch Regions 10 Pre-discovered Areas 21 | . . . 1 . . . . . . . 1 1 . . 9 . 9 . . . Known Exits Taken 11 | . 1 . . . 1 . . . . 1 1 1 . 1 1 1 1 1 1 . Unknown Exits Taken 6 | 1 . 1 1 1 . . 1 . . . . . 1 . . . . . . . Scrap Searched 12 | . . . . 1 . . . . . . 4 4 2 1 . . . . . . Spaces Dug 131 | . . . . . . . 4 . . 4 1 . . 21 17 . 24 60 . . Terrain Destroyed 644 | . . . . 13 45 13 49 6 . 14 48 . . 21 139 . 77 209 2 8 Melee 43 | . . . . . . . . . . 1 1 . . . 17 . 17 7 . . Projectile 105 | . . . . . 1 4 14 . . 12 . . . . 5 . 44 23 2 . AOE 495 | . . . . 13 44 9 35 6 . . 47 . . 21 117 . 16 179 . 8 Terrain Rammed . | . . . . . . . . . . . . . . . . . . . . . Walls Destroyed . | . . . . . . . . . . . . . . . . . . . . . Machines Disabled . | . . . . . . . . . . . . . . . . . . . . . Actions | -11 -10 -10 -10 -9 -8 -8 -8 -7 -7 -7 -7 -7 -7 -6 -6 -6 -5 -5 -5 -4 --------- Run | Jun Mat Min Exi Min Mat Gar Mat Fac Was Fac Low Low Zio Pro Fac Low Fac Ext Cet Fac Total 27773 | 59 757 188 298 120 511 1335 689 635 164 2527 409 827 8602 336 2266 33 5429 2311 198 79 Wait 9508 | . 22 35 . . 6 38 265 16 4 277 20 132 7604 24 97 1 458 508 . 1 Move 16578 | 49 648 148 293 112 377 1176 350 587 134 2053 371 680 986 308 1927 28 4647 1511 137 56 Hop 11 | . . . . . . . . . . . . . . . 3 . 8 . . . Pick Up 129 | 4 6 2 4 1 18 15 6 2 . 15 1 . 1 . 18 . 23 5 8 . Fast Attach 166 | 6 4 . . 1 6 7 9 2 . 27 . 2 5 . 23 4 41 20 7 2 Attach 61 | . 1 . . . 7 5 . 1 2 6 . . . . 12 . 14 10 1 2 Detach 56 | . 3 . . 1 3 3 3 1 3 6 . 1 . . 5 . 16 9 2 . Swap 129 | . 7 . . 3 18 8 6 5 . 17 8 5 . 2 10 . 22 9 6 3 Drop 228 | . 7 2 . . 20 14 18 2 21 33 1 2 6 . 30 . 54 3 14 1 Fire 622 | . 52 . 1 1 51 65 31 17 . 88 7 5 . 2 98 . 89 78 23 14 Melee 130 | . . . . . . . . . . 3 1 . . . 34 . 44 48 . . Ram 7 | . . . . . . . 1 2 . 2 . . . . 1 . . 1 . . Kick 2 | . 2 . . . . . . . . . . . . . . . . . . . Crush 12 | . 5 1 . 1 5 . . . . . . . . . . . . . . . Escape Stasis 25 | . . . . . . 4 . . . . . . . . 8 . 13 . . . Rewire 109 | . . . . . . . . . . . . . . . . . . 109 . . Trap . | . . . . . . . . . . . . . . . . . . . . . Miscellaneous . | . . . . . . . . . . . . . . . . . . . . . Route ------- -11/Junkyard -10/Materials (discovered 4 exits: [*Mat x3] / *Min) -10/Mines (discovered 2 exits: [*Mat] / *Exi) -10/Exiles (discovered 2 exits: *Min x2) -9/Mines -8/Materials (discovered 2 exits: *Fac / Gar) -8/Garrison (discovered 3 exits: *Mat x3) -8/Materials -7/Factory -7/Waste -7/Factory (discovered 4 exits: *Fac / *Sto / *Low x2) -7/Lower Caves -7/Lower Caves -7/Zion -6/Proximity Caves -6/Factory (discovered 2 exits: *Fac / *Low) -6/Lower Caves -5/Factory (discovered 5 exits: *Fac x3 / *Upp / *Ext) -5/Extension (discovered 2 exits: *Fac / *Cet) -5/Cetus (discovered 2 exits: *Fac / [*Arc]) -4/Factory History --------- Turn | Location | Event 7 | -11/Junkyard | Discovered new exit (range 15) 70 | -11/Junkyard | Entered Materials 135 | -10/Materials | Discovered new exit (range 12) 309 | -10/Materials | Build established: Mutant 721 | -10/Materials | Discovered new exit (range 9) 924 | -10/Materials | Identified exit to Mines 1166 | -10/Materials | Discovered new exit (range 13) 1447 | -10/Materials | Entered Mines 1486 | -10/Mines | Discovered new exit (range 15) 1508 | -10/Mines | Assembled infested the area 1612 | -10/Mines | Assisted by bots powering up and referring to "LRC-V3" 1689 | -10/Mines | Found a damaged Exp. Sensor Array with a note attached 1693 | -10/Mines | Found Prototype Device 1763 | -10/Mines | Received a Rocket Launcher from a helpful Derelict 1809 | -10/Mines | Discovered new exit (range 5) 1843 | -10/Mines | Entered Exiles 1843 | -10/Exiles | Accompanied by 3 allies 1875 | -10/Exiles | Discovered new exit (range 15) 1930 | -10/Exiles | Met 8R-AWN 1971 | -10/Exiles | Met EX-HEX 2034 | -10/Exiles | Met EX-BIN 2084 | -10/Exiles | Aligned with FarCom system 2086 | -10/Exiles | Given EX-Vault access code 2144 | -10/Exiles | Opened EX-Vault 2166 | -10/Exiles | Found 0b10 Alert Chip 2215 | -10/Exiles | Warned to stay clear of 0b10 Research branches 2291 | -10/Exiles | Met EX-DEC 2301 | -10/Exiles | Learned location of Zion (-7) 2499 | -10/Exiles | Attacked by the Exiles 2533 | -10/Exiles | Discovered new exit (range 10) 2553 | -10/Exiles | Left Exiles lab with 0b10 Alert Chip 2553 | -10/Exiles | Entered Mines 2582 | -9/Mines | Met a Derelict bent on vengeance 2699 | -9/Mines | Found the Drone Emporium 2718 | -9/Mines | Found Prototype Device 2718 | -9/Mines | Identified Sensor Drone Bay 2720 | -9/Mines | Identified Exp. Sensor Array 2806 | -9/Mines | Discovered new exit (range 12) 2835 | -9/Mines | Entered Materials 2835 | -8/Materials | Evolved 4 slots: Propulsion x2, Utility x2 3594 | -8/Materials | Garrison activated, responded to threat 3683 | -8/Materials | Discovered new exit (range 15) 3715 | -8/Materials | Identified exit to Garrison 3722 | -8/Materials | Entered Garrison 3844 | -8/Garrison | Garrison Relay disabled 3896 | -8/Garrison | Triggered checkpoint 3986 | -8/Garrison | Triggered checkpoint 4100 | -8/Garrison | Discovered new exit (range 12) 4154 | -8/Garrison | Triggered checkpoint 4215 | -8/Garrison | Garrison Relay disabled 4319 | -8/Garrison | Triggered checkpoint 4794 | -8/Garrison | Discovered new exit (range 11) 5414 | -8/Garrison | Triggered checkpoint 5574 | -8/Garrison | Discovered new exit (range 14) 5614 | -8/Garrison | Attempted to access garrison exit controls, blocked by remote lockdown 5716 | -8/Garrison | Triggered checkpoint 5852 | -8/Garrison | Entered Materials 6237 | -8/Materials | Discovered new exit (range 5) 6317 | -8/Materials | Garrison activated, responded to threat 6403 | -8/Materials | Destroyed 7 combat bots 6652 | -8/Materials | First assault squad dispatched 6703 | -8/Materials | Entered Factory 6703 | -7/Factory | Evolved 2 slots: Weapon x2 7022 | -7/Factory | Build established: Tank 7024 | -7/Factory | Discovered new exit (range 11) 7040 | -7/Factory | Identified exit to Factory 7466 | -7/Factory | Sucked down chute 7466 | -7/Factory | Entered Waste 7467 | -7/Waste | Met a frightened Derelict 7481 | -7/Waste | EMP discharged 7498 | -7/Waste | Spotted C-40 Crusher 7522 | -7/Waste | Spotted C-40 Crusher 7523 | -7/Waste | Spotted C-40 Crusher 7530 | -7/Waste | Spotted C-40 Crusher 7535 | -7/Waste | Spotted C-40 Crusher 7546 | -7/Waste | Spotted C-40 Crusher 7550 | -7/Waste | Discovered new exit (range 10) 7555 | -7/Waste | Entered Factory 7787 | -7/Factory | Build established: Mutant 8138 | -7/Factory | Build established: Gunner 8233 | -7/Factory | Discovered exit to Factory (range 15) 8764 | -7/Factory | Discovered new exit (range 14) 8782 | -7/Factory | Identified exit to Storage 8936 | -7/Factory | Identified exit to Lower Caves 8952 | -7/Factory | Build established: Tank 10238 | -7/Factory | System corruption reached 10% 10256 | -7/Factory | Entered Lower Caves 10262 | -7/Lower Caves | Met a Warlord Commander 10263 | -7/Lower Caves | Learned location of Warlord (-5) 10390 | -7/Lower Caves | Learned location of 1 exit from Factory 10500 | -7/Lower Caves | Encountered a Warlord checkpoint 10668 | -7/Lower Caves | Discovered new exit (range 14) 10683 | -7/Lower Caves | Identified exit to Lower Caves 10689 | -7/Lower Caves | Entered another Lower Caves area 11089 | -7/Lower Caves | Learned Factory emergency access door positions 11098 | -7/Lower Caves | Learned Research emergency access door positions 11156 | -7/Lower Caves | Encountered a Warlord checkpoint 11220 | -7/Lower Caves | Discovered new exit (range 10) 11525 | -7/Lower Caves | Identified exit to Zion 11530 | -7/Lower Caves | Entered Zion 11530 | -7/Zion | Accompanied by 1 ally 11642 | -7/Zion | Discovered new exit (range 16) 11983 | -7/Zion | System corruption cleaned by Quarantine Array 15113 | -7/Zion | Imprinted 15115 | -7/Zion | Declared Zion's savior 15184 | -7/Zion | Learned Factory security intel 15217 | -7/Zion | Given A8's code to call for help 15302 | -7/Zion | Found Prototype Launcher 15302 | -7/Zion | Identified Gui. Missile Launcher 15586 | -7/Zion | Build established: Mutant 20130 | -7/Zion | Entered Proximity Caves 20130 | -6/Proximity Caves | Accompanied by 4 allies 20304 | -6/Proximity Caves | Learned 4 Factory zone layouts 20321 | -6/Proximity Caves | Spotted B-75 Beast 20423 | -6/Proximity Caves | Build established: Tank 20438 | -6/Proximity Caves | Discovered exit to Factory (range 10) 20473 | -6/Proximity Caves | Entered Factory 20473 | -6/Factory | Accompanied by 1 ally 20473 | -6/Factory | Evolved 2 slots: Utility x2 20474 | -6/Factory | Identified exit to Factory 20738 | -6/Factory | Retrieved Zion intel report: Active Terminals 20797 | -6/Factory | Retrieved Zion intel report: Unaware Analyses 20925 | -6/Factory | Discovered new exit (range 13) 20929 | -6/Factory | Retrieved Zion intel report: Active Garrisons 20930 | -6/Factory | Zion Light squad teleported in 21071 | -6/Factory | Retrieved Zion intel report: Depthwide Sectors/-1 21214 | -6/Factory | Identified exit to Lower Caves 21463 | -6/Factory | Cargo convoy interrupted 21748 | -6/Factory | Terminal network hard line cut 22072 | -6/Factory | Lost 3 parts (1p2w) 22664 | -6/Factory | System corruption reached 10% 22923 | -6/Factory | First assault squad dispatched 23086 | -6/Factory | Core integrity fell below 50% 23110 | -6/Factory | Lost 7 parts (3n2u2w) 23156 | -6/Factory | Core integrity fell below 20% 23156 | -6/Factory | Entered Lower Caves 23157 | -6/Lower Caves | NK-0LA showed up to help 23159 | -6/Lower Caves | NK-0LA revealed a hidden path 23175 | -6/Lower Caves | Entered Factory 23175 | -5/Factory | Evolved 2 slots: Propulsion x1, Utility x1 23219 | -5/Factory | Zion Heavy squad teleported in 23507 | -5/Factory | Retrieved Zion intel report: Component Stockpiles 23557 | -5/Factory | Build established: Scavenger-Scout 23759 | -5/Factory | P-70 Sage assimilated allied WI-2LB(Z) 23903 | -5/Factory | Retrieved Zion intel report: Depthwide Sectors/0 23932 | -5/Factory | Retrieved Zion intel report: Unaware Schematics 23941 | -5/Factory | Found Prototype Protection 23941 | -5/Factory | Identified Zio. Weapon Casing 23993 | -5/Factory | Discovered new exit (range 7) 23995 | -5/Factory | Identified exit to Factory 24062 | -5/Factory | Retrieved Zion intel report: Emergency Access 24084 | -5/Factory | Discovered exit to Factory (range 9) 24177 | -5/Factory | Build established: Scavenger-Skirmisher 24325 | -5/Factory | Retrieved Zion intel report: Unaware Analyses 24664 | -5/Factory | Retrieved Zion intel report: Guard Positions 24766 | -5/Factory | Retrieved Zion intel report: Trap Installations 24771 | -5/Factory | Terminal network hard line cut 24798 | -5/Factory | Build established: Scavenger-Mutant 24978 | -5/Factory | Found Powered Armor 25078 | -5/Factory | Discovered new exit (range 8) 25081 | -5/Factory | Identified exit to Upper Caves 25128 | -5/Factory | Found Prototype Launcher 25128 | -5/Factory | Identified Mni. Smartbomb Launcher 25575 | -5/Factory | First assault squad dispatched 25793 | -5/Factory | Discovered exit to Factory (range 5) 26272 | -5/Factory | Discovered new exit (range 10) 26296 | -5/Factory | Identified exit to Extension 26297 | -5/Factory | Entered Extension 26412 | -5/Extension | System corruption reached 10% 26450 | -5/Extension | Spotted B-75 Beast 27011 | -5/Extension | Rescued a captive Derelict 27011 | -5/Extension | Rescued a captive Derelict 27059 | -5/Extension | Rescued a captive Derelict 27060 | -5/Extension | Rescued a captive Derelict 27125 | -5/Extension | Rescued a captive Derelict 27127 | -5/Extension | Rescued a captive Derelict 27148 | -5/Extension | Rescued a captive Derelict 27156 | -5/Extension | Rescued a captive Derelict 27362 | -5/Extension | Lost 3 parts (2n1u) 27515 | -5/Extension | Zion Melee Resupply teleported in 27542 | -5/Extension | Build established: Commander-Mutant 27614 | -5/Extension | Rescued A7 27686 | -5/Extension | Zion Melee Resupply teleported in 27700 | -5/Extension | Enhanced Grunt warped into view, answering call for help 27704 | -5/Extension | Enhanced Grunt warped into view, answering call for help 27716 | -5/Extension | Zion Hacking Resupply teleported in 27797 | -5/Extension | First assault squad dispatched 27812 | -5/Extension | Rescued a captive Derelict 27828 | -5/Extension | Terminal network hard line cut 27845 | -5/Extension | Found Prototype Protection 27845 | -5/Extension | Identified Med. Regenerative Plating 28091 | -5/Extension | Rescued a captive Derelict 28091 | -5/Extension | Rescued a captive Derelict 28133 | -5/Extension | Build established: Scavenger-Mutant 28198 | -5/Extension | Lost 6 parts (1p3n1u1w) 28227 | -5/Extension | Discovered exit to Factory (range 10) 28228 | -5/Extension | Discovered new exit (range 6) 28230 | -5/Extension | Extracted ID and sensor layout for unrecognized location from A7's data core 28257 | -5/Extension | Identified exit to Cetus 28275 | -5/Extension | Entered Cetus 28275 | -5/Cetus | Accompanied by 4 allies 28291 | -5/Cetus | Spotted Cetus Guard 28291 | -5/Cetus | Spotted Cetus Guard 28292 | -5/Cetus | Spotted Cetus Guard 28298 | -5/Cetus | Spotted Cetus Guard 28303 | -5/Cetus | Allies destroyed Cetus Guard 28305 | -5/Cetus | Allies destroyed Cetus Guard 28309 | -5/Cetus | Destroyed Cetus Guard 28312 | -5/Cetus | Allies destroyed Cetus Guard 28339 | -5/Cetus | Lost 3 parts (2n1w) 28438 | -5/Cetus | Discovered new exit (range 15) 28472 | -5/Cetus | Spotted Cetus Guard 28472 | -5/Cetus | Spotted Cetus Guard 28480 | -5/Cetus | Spotted Cetus Guard 28487 | -5/Cetus | Destroyed Cetus Guard 28490 | -5/Cetus | Allies destroyed Cetus Guard 28490 | -5/Cetus | Destroyed Cetus Guard 28491 | -5/Cetus | Spotted Cetus Guard 28502 | -5/Cetus | Destroyed Cetus Guard 28525 | -5/Cetus | Discovered exit to Factory (range 15) 28533 | -5/Cetus | Scared off Revision 17 28586 | -5/Cetus | Entered Factory 28586 | -4/Factory | Evolved 2 slots: Propulsion x1, Utility x1 28647 | -4/Factory | Spotted B-86 Titan 28730 | -4/Factory | Self-destructed Last Messages --------------- 28719_ Slug penetrates R-10 Processor. 28719_ Penetrated by Slug. 28721_ U-05 Engineer lays Concrete. 28721_ Quantum Reactor destroyed. 28721_ Penetrated by Slug. 28721_ Med. Regenerative Plating destroyed. 28722_ U-05 Engineer lays Concrete. 28723_ R-10 Processor collects Shock Maul. 28723_ Penetrated by Slug. 28723_ Slug penetrates R-10 Processor. 28723_ Enh. Flexi-carbon Leg destroyed. 28723_ B-86 Titan suffers critical hit (Destroy). 28723_ Slug penetrates B-86 Titan. 28724_ U-05 Engineer builds a Wall. 28724_ Penetrated by Slug. 28726_ Slug penetrates B-86 Titan. 28727_ R-10 Processor collects Adv. Energy Well. 28727_ U-05 Engineer lays Concrete. 28729_ Penetrated by Slug. 28729_ U-05 Engineer lays Concrete. Map ----- +----------------------------------------------------+ | ???????????????????????????# "G # """"" #?? | | ???????????????????????????# """ # """"" #?? | | ???????????????????????????# """ # """ #?? | | ???????????????????????????#! """ # #?? | | ???????????????????????????# """ # #?? | | ???????????????????????????# # #?? | | ?????????????????????+#############+######+#####?? | | ????????????????????? """" #??? | | ???????????????? """""" #??? | | ??????????????? ""F "" #??? | | ?????????????? """ % #??? | | ?????????????? #??? | | ???????????????### #################??? | | ???????????????# ; #?????? | | ???????????????# """ # #?????? | | ??????????????#### BBh%%%" %+ #?????? | | ?????????????? BB %h%% # #?????? | | ?????????????##### [[ % ; #?????? | | ???????????? ; # #?????? | | ???????????#; #? #?????? | | ???????????? #?? ]#?????? | | ??????????? ; % #?? #?????? | | ??????????? ; #??? #?????? | | ?????????? ; #??? ??????? | | ?????????? ; #???? ??????? | | ?????????? u ;@R% ##???#######???????? | | ?????????? ### ;;% ;#?????????????????? | | ??????????######## #;#% ##?????????????????? | | ??????????? u ? %= % #??????????????????? | | ??????????? % #??????????????????? | | ???????????? #??????????????????? | | ??????????? #??????????????????? | | ???????????? #??????????????????? | | ????????????# #??????????????????? | | ????????????### # #??????????????????? | | ??????????????##?# ??????????????????? | | ?????????????????# ### ###+?????????????????? | | ?????????????????# ???###????????????????????? | | ?????????????????# ??????????????????????????? | | ????????????????? ??????????????????????????? | | ??????????????????##+#???????????????????????????? | | ?????????????????????????????????????????????????? | | ?????????????????????????????????????????????????? | | ?????????????????????????????????????????????????? | | ?????????????????????????????????????????????????? | | ?????????????????????????????????????????????????? | | ?????????????????????????????????????????????????? | | ?????????????????????????????????????????????????? | | ?????????????????????????????????????????????????? | | ?????????????????????????????????????????????????? | +----------------------------------------------------+ Best States ------------- Heat Dissipation 79 Energy Generation 25 Energy Capacity 500 Matter Stores 300 Matter Capacity 300 Sight Range 18 Robot Scan Range 20 Terrain Scan Density 10 Jamming Range 12 Armor Coverage 1700 Resistance: KI 20 Weapon Shielding 100 Phase Shifting 5 Evasion (%) 65 Targeting Accuracy 8 Melee Accuracy 6 Recoil Reduction 4 Particle Charging 20 Salvage Targeting 2 Offensive Hacking 10 Item Schematics ----------------- Exp. Sensor Array | -7/Factory | Scanalyzed Robot Schematics ------------------ B-60 Warrior | -5/Factory | Z-intel R-10 Processor | -5/Factory | Z-intel T-07 Excavator | -5/Factory | Z-intel A-02 Transporter | -5/Factory | Z-intel Fabricated ------------ Nothing Alien Tech Used ----------------- None Achievements -------------- None Challenges ------------ None Game ------ Seed RocketRecoilConstruct Manual? 0 Play Time 03:48:14 Cumulative 299.1 hours Start 2023.04.25 @ 19:59:07 End 2023.04.26 @ 01:35:15 Sessions 1 Manual Loads 0 Difficulty Rogue Special Mode None Game No. 121 Rogue 105 Adventurer 8 Explorer 8 Win Type - Total 22 Types 12/1/6/1/1/1/0/0/0 Lore% 88 Gallery% 85 Achievement% 75 Wizard Run 0 Options --------- ASCII 1 Keyboard 1 Movement Vi Keybinds 0 Fullscreen 1 Font 18/CogWide Map View 76x50 Tactical HUD 1 Map Filters NONE Filters NONE Steam 0 RUN: dc864a85-3d77-4835-90b1-5b0214a34aa7